Expenditure Date,Department,Beneficiary,Amount (�),Summary of purpose of expenditure,Description
02/01/2021,Public Relations,FACEBK 92Y,400.00,Marketing Materials,FACEBK 92YREYEGD2
03/01/2021,Academy Management,ZOOM.US 88,28.78,Licence fees,ZOOM.US 888-799-9666
04/01/2021,Stock,SAFETYSIGN,6.88,Ops Equipment Purchases,SAFETYSIGNS
04/01/2021,Chelston Vehicle Engineering,THOMAS HAM,162.00,Contractor Repair,THOMAS HAMLIN & CO
04/01/2021,Community Safety Prevention,AMZNMktpla,12.46,Standard Equipment,AMZNMktplace
05/01/2021,ICT Delivery,PREMIER FA,99.32,ICT Desktop Service,PREMIER FARNELL
05/01/2021,Barnstaple,EXETER WIN,120.53,Unforseen Maintnce Mats Techn,EXETER WINDOW STORE
05/01/2021,Response Policy & Specialist C,Amazon.co.,38.68,Printing/Stationery/Photocopy,Amazon.co.uk*MJ34O9Q84
05/01/2021,Alignment,3DVISTA,92.30,ICT Application Services (Oth),3DVISTA
05/01/2021,Research & Development,HOMEBASE L,18.50,Standard Equipment,HOMEBASE LTD
05/01/2021,USAR Dog,WWW.JULIUS,32.48,USAR Dog Expenses,WWW.JULIUS-K9.CO.UK
05/01/2021,West Devon,XMA LTD,16.78,Print Consumables,305XL High Yield Tri-color Original Ink
05/01/2021,West Devon,XMA LTD,14.38,Print Consumables,HP 305XL High Yield Black Original Ink C
05/01/2021,Greenbank,ADEXA DIRE,"1,498.00",Standard Equipment,ADEXA DIRECT
05/01/2021,Shepton Mallet,FOXTAM CON,124.90,Unforseen Maintnce Mats Techn,FOXTAM CONTROLS
05/01/2021,Human Resources,PAYPAL *VO,215.40,Fitness Equipment Maintenance,PAYPAL *VO2 MASTER
05/01/2021,Driver Training School,SOUTHERN C,16.05,Standard Equipment,SOUTHERN CO-OP 0373
05/01/2021,Customer Services,CENTRAL CO,3.74,Meals for Training Courses,CENTRAL CONVENIENT STORES
06/01/2021,Chelston Vehicle Engineering,LEDPERF,108.66,Marine craft,LEDPERF
06/01/2021,Crownhill Vehicle Engineering,GREGORY DI,282.27,Carriage Costs,GREGORY DISTRIBUTION
06/01/2021,Procurement,Amazon Pri,6.66,Standard Equipment,Amazon Prime*MJ5LL0DQ4
06/01/2021,Public Relations,dotmailer,342.13,Publications/Subscriptions,dotmailer
06/01/2021,Barnstaple,EXETER WIN,17.98,Unforseen Maintnce Mats Techn,EXETER WINDOW STORE
06/01/2021,Barnstaple,EXETER WIN,6.49,Unforseen Maintnce Mats Techn,EXETER WINDOW STORE
06/01/2021,Cullompton,AMZNMktpla,27.10,Cleaning/Kitchen Equipment,AMZNMktplace
06/01/2021,Response Policy & Specialist C,LYRECO UK,4.90,Printing/Stationery/Photocopy,LYRECO 2O-RING BINDER PP A4 25MM RED
06/01/2021,Response Policy & Specialist C,LYRECO UK,4.90,Printing/Stationery/Photocopy,LYRECO 2O-RING BINDER PP A4 25MM BLU
06/01/2021,Alignment,AMZNMKTPLA,15.98,Standard Equipment,AMZNMKTPLACE AMAZON.CO.UK
06/01/2021,USAR Team,LYRECO UK,8.90,Printing/Stationery/Photocopy,WHITEFURZE ALLSTORE BOX PP 1.7L CLR
06/01/2021,USAR Team,LYRECO UK,7.14,Printing/Stationery/Photocopy,WHITEFURZE ALLSTORE BOX PP 2.6L CLR
06/01/2021,USAR Team,LYRECO UK,4.18,Printing/Stationery/Photocopy,BX100 LYRECO LAM POUCH 2X75MI A4 GLOSS
06/01/2021,USAR Team,LYRECO UK,15.60,Printing/Stationery/Photocopy,BX20+4 SHARPIE PERM MARKER FINE BLK
06/01/2021,USAR Team,LYRECO UK,5.04,Printing/Stationery/Photocopy,LYRECO PREM GEL INK PEN W/GRIP 0.7MM BLK
06/01/2021,USAR Team,LYRECO UK,2.49,Printing/Stationery/Photocopy,PK4 LYRECO W/BOARD MARKER B/TIP ASST COL
06/01/2021,USAR Team,LYRECO UK,0.60,Printing/Stationery/Photocopy,LYRECO PREMIUM SYM SCISSORS 17CM
06/01/2021,Driver Training School,SOUTHERN C,8.00,Subsistence Uniformed,SOUTHERN CO-OP 0373
06/01/2021,Customer Services,SOUTHERN C,8.00,Meals for Training Courses,SOUTHERN CO-OP 0373
06/01/2021,Customer Services,TESCO STOR,3.00,Meals for Training Courses,TESCO STORE 2487
06/01/2021,Community Safety Prevention,AMZNMktpla,13.16,Standard Equipment,AMZNMktplace
07/01/2021,Barnstaple,EUROCELL B,15.76,Unforseen Maintnce Mats Techn,EUROCELL BUILDING
07/01/2021,Alignment,AMZNMktpla,24.66,Printing/Stationery/Photocopy,AMZNMktplace
07/01/2021,Research & Development,POWER TOOL,13.74,Operational Equipment,POWER TOOLS DIRECT
07/01/2021,Princetown,WWW.FIRSTF,241.30,Standard Equipment,WWW.FIRSTFENCE.CO.UK
07/01/2021,Yeovil Group,WWW.BUILDE,52.51,Standard Equipment,WWW.BUILDERDEPOT.CO.UK
07/01/2021,Driver Training School,SOUTHERN C,8.05,Subsistence Uniformed,SOUTHERN CO-OP 0373
07/01/2021,Academy Management,SCREWFIX D,154.56,Unforseen Maintnce Mats Techn,SCREWFIX DIRECT
07/01/2021,Academy Management,AMZNMktpla,104.95,Trng Equip Consumables,AMZNMktplace
07/01/2021,Academy Management,AMZNMktpla,26.24,Trng Equip Consumables,AMZNMktplace
07/01/2021,Academy Management,MARK VENNI,65.94,Trng Equip Consumables,MARK VENNING LIMITED
07/01/2021,Academy Management,WWW.WITHER,44.50,Printing/Stationery/Photocopy,WWW.WITHERBYSEAMANSHIP.C
07/01/2021,Assets & Systems,TYPEFORM S,25.00,ICT Application Services (Oth),TYPEFORM S.L
07/01/2021,Customer Services,SOUTHERN C,0.75,Meals for Training Courses,SOUTHERN CO-OP 0373
07/01/2021,Customer Services,SOUTHERN C,7.75,Meals for Training Courses,SOUTHERN CO-OP 0373
07/01/2021,Customer Services,TESCO STOR,3.00,Meals for Training Courses,TESCO STORE 2487
07/01/2021,Customer Services,AMZNMktpla,102.45,Meals for Training Courses,AMZNMktplace
07/01/2021,Customer Services,AMZNMktpla,54.97,Meals for Training Courses,AMZNMktplace
08/01/2021,Plymstock major capital scheme,PLYMOUTH C,116.00,Planning & building reg appls,PLYMOUTH CC CAS/SE
08/01/2021,Stock,TOOLSTATIO,62.42,Ops Equipment Purchases,TOOLSTATION LTD
08/01/2021,ICT Delivery,PREMIER FA,57.65,ICT Desktop Service,PREMIER FARNELL
08/01/2021,ICT Delivery,PREMIER FA,448.10,ICT Desktop Service,PREMIER FARNELL
08/01/2021,ICT Delivery,DHL PARCEL,42.62,ICT Mobile Data Terminal Servi,DHL PARCEL UK
08/01/2021,ICT Delivery,AMZNMktpla,9.90,ICT Mobile Telephony Service,Mouse pad and wrist rest
08/01/2021,Crownhill Vehicle Engineering,LYRECO UK,4.99,Printing/Stationery/Photocopy,PK6 LYRECO NONOISE PACKTAPE PP 50X66 BRW
08/01/2021,Crownhill Vehicle Engineering,LYRECO UK,5.20,Printing/Stationery/Photocopy,LUMOCOLOR 318 PERM OHP PEN FINE BLK
08/01/2021,Crownhill Vehicle Engineering,LYRECO UK,7.99,Printing/Stationery/Photocopy,PK5 2227 DURACLIP FOLDERS ASSORTED
08/01/2021,Crownhill Vehicle Engineering,LYRECO UK,0.52,Printing/Stationery/Photocopy,LYRECO WEEK/VIEW DIARY A5 BLU
08/01/2021,Crownhill Vehicle Engineering,LYRECO UK,1.74,Printing/Stationery/Photocopy,PK5 POPPER WALLET FOOLSCAP BRIGHT ASST
08/01/2021,Procurement,LYRECO UK,1.20,Printing/Stationery/Photocopy,STAEDTLER 430 STICK B/PEN MED RED
08/01/2021,Procurement,LYRECO UK,4.54,Printing/Stationery/Photocopy,PK50 LYRECO ENV C4 90G S/S WH
08/01/2021,Procurement,LYRECO UK,1.32,Printing/Stationery/Photocopy,LYRECO STICK B/PEN W/GRIP MEDIUM 1.0 BLU
08/01/2021,Procurement,LYRECO UK,1.56,Printing/Stationery/Photocopy,LYRECO STICK B/PEN W/GRIP MEDIUM 1.0 BLK
08/01/2021,Procurement,LYRECO UK,3.75,Printing/Stationery/Photocopy,MOUSE PAD FOAM BLK
08/01/2021,Procurement,LYRECO UK,2.15,Printing/Stationery/Photocopy,LYRECO D830 DESK CALCULATOR 12 DIGIT
08/01/2021,Procurement,LYRECO UK,4.00,Printing/Stationery/Photocopy,LYRECO TWIN WIRE SPIRAL PAD A5
08/01/2021,Procurement,LYRECO UK,0.16,Printing/Stationery/Photocopy,PK4 LYRECO INDEX PAPIER 20X38MM ASSTD
08/01/2021,Procurement,LYRECO UK,0.39,Printing/Stationery/Photocopy,LYRECO CORRECT TAPE SIDELOAD 4.2MMX8.5M
08/01/2021,Procurement,LYRECO UK,6.70,Printing/Stationery/Photocopy,LYRECO NOTEBOOK SPIRAL A4+ RULED 70G 80S
08/01/2021,Public Relations,STK*Shutte,34.80,Printing/Stationery/Photocopy,STK*Shutterstock
08/01/2021,Barnstaple Group,LYRECO UK,4.80,Printing/Stationery/Photocopy,LYRECO 2O-RING BINDER PP A4 25MM YLLW
08/01/2021,Barnstaple Group,LYRECO UK,4.90,Printing/Stationery/Photocopy,LYRECO 2O-RING BINDER PP A4 25MM GR
08/01/2021,Barnstaple Group,LYRECO UK,4.90,Printing/Stationery/Photocopy,LYRECO 2O-RING BINDER PP A4 25MM BLU
08/01/2021,Barnstaple Group,LYRECO UK,4.90,Printing/Stationery/Photocopy,LYRECO 2O-RING BINDER PP A4 25MM BLK
08/01/2021,Barnstaple Group,LYRECO UK,61.08,Printing/Stationery/Photocopy,LEGA 159100 MAGIC CHART 25SHTS PLAIN
08/01/2021,Executive support,POST OFFIC,10.20,Standard Equipment,POST OFFICE COUNTER
08/01/2021,West Devon,LYRECO UK,43.28,Standard Equipment,FELLOWES POWERSHRED M-7C SHREDDER CC
08/01/2021,West Devon,LYRECO UK,0.40,Printing/Stationery/Photocopy,STANDARD RULER 12 /30CM CLR
08/01/2021,West Devon,LYRECO UK,1.30,Printing/Stationery/Photocopy,LYRECO BUDGET SCISSORS PLAST SYM 17CM
08/01/2021,West Devon,LYRECO UK,4.70,Printing/Stationery/Photocopy,LYRECO HARD BACK TWIN WIRE NOTEBOOK A4
08/01/2021,West Devon,LYRECO UK,6.54,Printing/Stationery/Photocopy,PUKKA POCK NOTEBK 130X85MM RULEDSILV/BLK
08/01/2021,Paignton,EXETER WIN,8.34,Unforseen Maintnce Mats Techn,EXETER WINDOW STORE
08/01/2021,Customer Services,AMZNMktpla,26.23,Printing/Stationery/Photocopy,AMZNMktplace
08/01/2021,Customer Services,AMZNMktpla,19.90,Printing/Stationery/Photocopy,AMZNMktplace
08/01/2021,West & North,TOOLSTATIO,79.92,Standard Equipment,TOOLSTATION UK
09/01/2021,Fire Control,CURRYS ONL,109.98,Standard Equipment,CURRYS ONLINE
09/01/2021,Taunton Group,LYRECO UK,4.32,Printing/Stationery/Photocopy,LYRECO RETRACTABLE B/POINT PEN MED BLU
09/01/2021,Taunton Group,LYRECO UK,4.20,Printing/Stationery/Photocopy,LYRECO BUDGET PAD GLUED A4RUL 4H 56G 80S
09/01/2021,Taunton Group,LYRECO UK,4.52,Printing/Stationery/Photocopy,PK100 ECO PUNCHED POCK 45MI A4
09/01/2021,Taunton Group,LYRECO UK,29.70,Printing/Stationery/Photocopy,RM500 LYRECO BUDGET PAPER A4 80G WH
09/01/2021,Customer Services,AMZ*Tupopa,-2.49,Printing/Stationery/Photocopy,AMZ*Tupopap
09/01/2021,Customer Services,AMZ*Tupopa,-2.50,Printing/Stationery/Photocopy,AMZ*Tupopap
09/01/2021,Customer Services,AMZNMktpla,15.81,Printing/Stationery/Photocopy,AMZNMktplace
10/01/2021,Public Relations,PAPERTURN,9.00,ICT Application Services (Oth),PAPERTURN   *
10/01/2021,Fire Control,AMAZON.CO.,19.79,Standard Equipment,AMAZON.CO.UK*MJ6068UR4 AM
10/01/2021,Yeovil Group,AMZNMktpla,9.15,Standard Equipment,AMZNMktplace
10/01/2021,Academy Management,AMZNMktpla,179.17,Trng Equip Consumables,AMZNMktplace
11/01/2021,Stock,WWW.REFERE,128.09,Ops Equipment Purchases,WWW.REFEREE-EQUIPMENT.
11/01/2021,Stock,TOOLSTATIO,100.83,Ops Equipment Purchases,TOOLSTATION LTD
11/01/2021,ICT Delivery,AMZNMktpla,21.66,Standard Equipment,Doorbell
11/01/2021,Senior Management Team,PAYPAL *SU,130.20,External Trainer Hire,PAYPAL *SUSSEXBUSIN
11/01/2021,Seaton,SECURITYSA,91.98,Unforseen Maintnce Mats Techn,SECURITYSAFETYPRODUCTS
11/01/2021,Academy Management,EDMUNDSON,86.51,Trng Equip Consumables,EDMUNDSON ELECTRICAL
11/01/2021,Academy Management,TOOLSTATIO,6.22,Trng Equip Consumables,TOOLSTATION LIMITED
11/01/2021,Customer Services,DONOVANBRO,111.85,Meals for Training Courses,Foam cups
11/01/2021,Customer Services,AMZNMktpla,112.63,Meals for Training Courses,AMZNMktplace
11/01/2021,Customer Services,SHELL A38,4.30,Meals for Training Courses,SHELL A38 WEST BUCKLAN
11/01/2021,Customer Services,CENTRAL CO,3.99,Meals for Training Courses,CENTRAL CONVENIENT STORES
11/01/2021,Customer Services,TESCO PFS,2.78,Meals for Training Courses,TESCO PFS 3792
11/01/2021,West & North,BOOTS 0351,49.99,Standard Equipment,BOOTS 0351
11/01/2021,West & North,WELL PHARM,44.99,Standard Equipment,WELL PHARMACY 200483
11/01/2021,HazMat - Capabilites,MCDONALDS,6.89,Subsistence Uniformed,MCDONALDS 1588
12/01/2021,ICT Delivery,WWW.AVPART,"1,622.99",ICT Desktop Service,WWW.AVPARTMASTER.NET
12/01/2021,ICT Delivery,WWW.AVPART,398.39,ICT Desktop Service,WWW.AVPARTMASTER.NET
12/01/2021,ICT Delivery,MANX TELEC,18.16,ICT Mobile Telephony Service,January Bill
12/01/2021,ICT Delivery,POST OFFIC,4.85,Postages,Posting accessories to user
12/01/2021,Estates,AMZNMktpla,142.09,Standard Equipment,AMZNMktplace
12/01/2021,Light Vehicle Management,THRIFTY CA,149.97,Hired Transport,Hired Transport
12/01/2021,South Molton,THRIFTY CA,18.81,Hired Transport,Hired Transport
12/01/2021,Woolacombe,THRIFTY CA,19.98,Hired Transport,Hired Transport
12/01/2021,Hartland,THRIFTY CA,18.81,Hired Transport,Hired Transport
12/01/2021,Hartland,THRIFTY CA,18.81,Hired Transport,Hired Transport
12/01/2021,Hartland,THRIFTY CA,110.05,Hired Transport,Hired Transport
12/01/2021,Hartland,THRIFTY CA,18.81,Hired Transport,Hired Transport
12/01/2021,Hatherleigh,THRIFTY CA,18.81,Hired Transport,Hired Transport
12/01/2021,Hatherleigh,THRIFTY CA,18.81,Hired Transport,Hired Transport
12/01/2021,Witheridge,THRIFTY CA,18.81,Hired Transport,Hired Transport
12/01/2021,Exeter Group,THRIFTY CA,66.33,Hired Transport,Hired Transport
12/01/2021,Okehampton,THRIFTY CA,18.81,Hired Transport,Hired Transport
12/01/2021,Bampton,THRIFTY CA,55.97,Hired Transport,Hired Transport
12/01/2021,Crediton,BOOKER LIM,45.15,Wholetime Fireground Feeding,BOOKER LIMITED BARNSTAPLE
12/01/2021,Cullompton,THRIFTY CA,37.62,Hired Transport,Hired Transport
12/01/2021,Axminster,THRIFTY CA,205.21,Hired Transport,Hired Transport
12/01/2021,Seaton,WWW.SUIGEN,73.36,Unforseen Maintnce Mats Techn,WWW.SUIGENERIS.CO.UK
12/01/2021,Seaton,WWW.SURE-G,135.51,Unforseen Maintnce Mats Techn,WWW.SURE-GREEN.COM
12/01/2021,Fire Control,LYRECO UK,13.68,Printing/Stationery/Photocopy,BX200 PURELL HAND & SURFACE SAN WIPES
12/01/2021,Fire Control,LYRECO UK,5.20,Printing/Stationery/Photocopy,LYRECO PAD GLUED 2H-PUNCH A5 RUL 60G 80S
12/01/2021,USAR Team,RADMORE &,339.61,Standard Equipment,RADMORE & TUCKER
12/01/2021,Plympton,THRIFTY CA,18.81,Hired Transport,Hired Transport
12/01/2021,Camels Head,THRIFTY CA,56.43,Hired Transport,Hired Transport
12/01/2021,Crownhill,TOOLSTATIO,16.65,Unforseen Maintnce Mats Techn,TOOLSTATION LTD
12/01/2021,Crownhill,THRIFTY CA,94.05,Hired Transport,Hired Transport
12/01/2021,Greenbank,PAYPAL *CA,18.33,Standard Equipment,CATERSPARES EB
12/01/2021,Salcombe,THRIFTY CA,18.81,Hired Transport,Hired Transport
12/01/2021,Tavistock,THRIFTY CA,112.86,Hired Transport,Hired Transport
12/01/2021,South Devon,THRIFTY CA,131.67,Hired Transport,Hired Transport
12/01/2021,South Devon,AMAZON.CO.,12.24,Standard Equipment,AMAZON.CO.UK*MJ5TX0YX4 AM
12/01/2021,South Devon,AMAZON.CO.,55.50,Standard Equipment,AMAZON.CO.UK*MJ7RF1YU4 AM
12/01/2021,South Devon,XMA LTD,109.40,Print Consumables,78A BLACK LASERJET CONTRACT TON CART
12/01/2021,Taunton,THRIFTY CA,121.75,Hired Transport,Hired Transport
12/01/2021,Porlock,THRIFTY CA,55.97,Hired Transport,Hired Transport
12/01/2021,Bridgwater,THRIFTY CA,167.89,Hired Transport,Hired Transport
12/01/2021,Burnham-on-Sea,THRIFTY CA,174.86,Hired Transport,Hired Transport
12/01/2021,Nether Stowey,THRIFTY CA,130.59,Hired Transport,Hired Transport
12/01/2021,Williton,THRIFTY CA,130.59,Hired Transport,Hired Transport
12/01/2021,Cheddar Fire Station,THRIFTY CA,240.69,Hired Transport,Hired Transport
12/01/2021,Yeovil Group,THRIFTY CA,111.93,Hired Transport,Hired Transport
12/01/2021,Yeovil,THRIFTY CA,111.93,Hired Transport,Hired Transport
12/01/2021,Ilminster,THRIFTY CA,167.89,Hired Transport,Hired Transport
12/01/2021,Castle Cary,THRIFTY CA,112.32,Hired Transport,Hired Transport
12/01/2021,Frome,THRIFTY CA,149.24,Hired Transport,Hired Transport
12/01/2021,Wells,THRIFTY CA,223.87,Hired Transport,Hired Transport
12/01/2021,Human Resources,PAYPAL *VO,364.01,Fitness Equipment Maintenance,PAYPAL *VO2 MASTER
12/01/2021,Academy Management,SCREWFIX D,18.59,Unforseen Maintnce Mats Techn,SCREWFIX DIRECT
12/01/2021,Academy Management,THRIFTY CA,591.55,Hired Transport,Hired Transport
12/01/2021,Academy Management,TOOLSTATIO,38.00,Standard Equipment,TOOLSTATION UK
12/01/2021,Assets & Systems,Amazon.co.,62.35,Audio Visual Equipment,Amazon.co.uk*MJ0TN6YF4
12/01/2021,Customer Services,AMZNMktpla,35.00,Cleaning/Kitchen Equipment,AMZNMktplace
12/01/2021,Customer Services,GRUBS UP,4.17,Meals for Training Courses,GRUBS UP
12/01/2021,Customer Services,RSS WHIDDO,5.42,Meals for Training Courses,RSS WHIDDON DOWN
12/01/2021,Customer Services,TESCO STOR,3.00,Meals for Training Courses,TESCO STORE 2487
12/01/2021,West & North,TOOLSTATIO,25.96,Standard Equipment,TOOLSTATION LTD
12/01/2021,West & North,ALDI STORE,2.19,Standard Equipment,ALDI STORES
12/01/2021,Prevention Delivery (850k),THRIFTY CA,"2,608.76",Hired Transport,Hired Transport
12/01/2021,Covid-19,THRIFTY CA,188.10,Hired Transport,Hired Transport
12/01/2021,Covid-19,THRIFTY CA,225.76,Hired Transport,Hired Transport
12/01/2021,Covid-19,THRIFTY CA,77.58,Hired Transport,Hired Transport
12/01/2021,Covid-19,THRIFTY CA,37.62,Hired Transport,Hired Transport
12/01/2021,Covid-19,THRIFTY CA,37.62,Hired Transport,Hired Transport
12/01/2021,Covid Recovery,CHAIROFFIC,203.99,Standard Equipment Other,CHAIROFFICE
13/01/2021,Estates,SCREWFIX D,16.65,Unforseen Maintnce Mats Techn,SCREWFIX DIRECT
13/01/2021,Chelston Vehicle Engineering,AMZNMKTPLA,45.98,Direct Replacmnt Parts-Defects,AMZNMKTPLACE AMAZON.CO.UK
13/01/2021,Public Relations,FACEBK YLV,198.98,Marketing Materials,FACEBK YLV4UXEHD2
13/01/2021,Barnstaple Group,ROYAL MAIL,77.52,Postages,Comm Safety Prevention - Stamps for SMR
13/01/2021,Exeter Group,LYRECO UK,0.31,Printing/Stationery/Photocopy,BX12 LYRECO GRAPHITE PENCIL W/ERASER HB
13/01/2021,Exeter Group,LYRECO UK,48.00,Printing/Stationery/Photocopy,RM500 LYRECO PAPER 90G A4 WH
13/01/2021,Exeter Group,LYRECO UK,6.70,Printing/Stationery/Photocopy,PK6 LYRECO CLEAR TAPE 25MMX66M
13/01/2021,Exeter Group,LYRECO UK,3.24,Printing/Stationery/Photocopy,LYRECO RULED MANUSCRIPT BOOK A5 BLUE
13/01/2021,Middlemoor Fire Station,STREME LIM,170.00,Unforseen Maintnce Mats Techn,STREME LIMITED
13/01/2021,USAR Team,SCREWFIX D,77.40,Unforseen Maintnce Mats Techn,SCREWFIX DIRECT
13/01/2021,USAR Team,SCREWFIX D,68.92,Unforseen Maintnce Mats Techn,SCREWFIX DIR LTD
13/01/2021,USAR Team,RADMORE &,101.35,Standard Equipment,RADMORE & TUCKER
13/01/2021,USAR Team,CAST IN ST,127.50,Standard Equipment,CAST IN STYLE
13/01/2021,South Devon,LYRECO UK,8.66,Printing/Stationery/Photocopy,PK10 LYRECO BUDGET STORAGE BOXES
13/01/2021,South Devon,LYRECO UK,12.64,Printing/Stationery/Photocopy,LYRECO 4D-RING BINDER PPA4 40MM RED
13/01/2021,South Devon,LYRECO UK,3.50,Printing/Stationery/Photocopy,EXACOMPTA PERSO 4D-RING MAXI 30MM WH
13/01/2021,South Devon,LYRECO UK,11.40,Printing/Stationery/Photocopy,PK10 IDERAMA 2-RING BINDER 30MM ASSTD
13/01/2021,South Devon,LYRECO UK,31.08,Printing/Stationery/Photocopy,PK5+2 BLACKN'RED N/BK C/BOUND A4 RUL BLK
13/01/2021,South Devon,LYRECO UK,6.20,Printing/Stationery/Photocopy,LYRECO SHORTHAND NOTEBOOK 80S 56G
13/01/2021,South Devon,LYRECO UK,7.56,Printing/Stationery/Photocopy,PK8 LYRECO CLEAR TAPE 19MMX66M
13/01/2021,South Devon,LYRECO UK,3.30,Printing/Stationery/Photocopy,SELLOTAPE BENCH TAPE DISPENSER CHROME
13/01/2021,South Devon,LYRECO UK,40.72,Printing/Stationery/Photocopy,LEGA 159100 MAGIC CHART 25SHTS PLAIN
13/01/2021,Academy Management,EXETER WIN,5.44,Unforseen Maintnce Mats Techn,EXETER WINDOW STORE
13/01/2021,Customer Services,TESCO STOR,3.00,Meals for Training Courses,TESCO STORE 2487
13/01/2021,Community Safety Prevention,AMAZON PRI,6.66,Standard Equipment,AMAZON PRIME*MV0CU9C04 AM
14/01/2021,Stock,SAFETYSIGN,43.40,Ops Equipment Purchases,SAFETYSIGNS
14/01/2021,ICT Delivery,AMZNMktpla,40.00,ICT Fixed Line Tel Ser-Hardwar,Plantronics C3320 Headset
14/01/2021,Hydrants Maintenance,TURTLE COV,116.80,Hydrant Misc Costs,TURTLE COVERS GROUP LIMIT
14/01/2021,Procurement,WWW.CIPS.O,25.00,Non-Uniformed Training,WWW.CIPS.ORG
14/01/2021,Seaton,SCREWFIX D,14.16,Unforseen Maintnce Mats Techn,SCREWFIX DIRECT
14/01/2021,"Prof, Safe & High Performing",ZOOM.US 88,14.39,Standard Equipment,ZOOM.US 888-799-9666
14/01/2021,Apprentice Firefighter Recruit,LAND REGIS,3.00,Consultation Fees,LAND REGISTRY
14/01/2021,Organisational Dev Leadership,HAYMARKET,675.75,Non-Uniformed Training,HAYMARKET MEDIA GROUP
14/01/2021,Academy Management,EXMOUTH PO,19.66,Unforseen Maintnce Mats Techn,EXMOUTH POWER TOOLS
14/01/2021,Assets & Systems,Peopleperh,110.60,Audio Visual Equipment,Peopleperhour.com Proposa
15/01/2021,4x4 - 16 Ford Ranger,FLETCHER E,331.44,Vehicle purchase,FLETCHER EUROPEAN CONT
15/01/2021,Plymstock major capital scheme,LAND REGIS,6.00,Miscellaneous Fees,LAND REGISTRY
15/01/2021,ICT Delivery,ARGOS LTD,78.60,ICT Infrastructure Service,SD Cards for ESX servers
15/01/2021,Estates,SCREWFIX D,49.99,Unforseen Maintnce Mats Techn,SCREWFIX DIRECT
15/01/2021,Operations,VIKING UK,8.29,Printing/Stationery/Photocopy,NOTEBK BK FOR A4 RL CLAS
15/01/2021,Operations,VIKING UK,2.90,Printing/Stationery/Photocopy,Freight
15/01/2021,Executive Support,POST OFFIC,12.03,Standard Equipment,POST OFFICE COUNTER
15/01/2021,West Devon,Amazon.co.,31.24,Standard Equipment,Ink Cartridges
15/01/2021,South Devon,LYRECO UK,1.46,Printing/Stationery/Photocopy,PK8 LYRECO CLEAR TAPE 19MMX33M
15/01/2021,Taunton Group,LYRECO UK,11.36,Printing/Stationery/Photocopy,PK125 LYR ENV PLAIN 458X324 115G S/S MAN
15/01/2021,Taunton Group,LYRECO UK,19.80,Printing/Stationery/Photocopy,RM500 LYRECO BUDGET PAPER A4 80G WH
15/01/2021,Taunton Group,LYRECO UK,8.36,Printing/Stationery/Photocopy,BX100 LYRECO LAM POUCH 2X75MI A4 GLOSS
15/01/2021,Taunton Group,LYRECO UK,3.70,Printing/Stationery/Photocopy,EDDING 300 PERM MARK PLAST B/TIP BLK
15/01/2021,Taunton Group,LYRECO UK,4.32,Printing/Stationery/Photocopy,LYRECO RETRACTABLE B/POINT PEN MED BLU
15/01/2021,Taunton Group,LYRECO UK,3.00,Printing/Stationery/Photocopy,PK25 SUPAZIP WALLET A5 CLR
15/01/2021,Taunton Group,LYRECO UK,3.00,Printing/Stationery/Photocopy,MICRON B/POINT PEN MED BLK
15/01/2021,Taunton Group,LYRECO UK,1.50,Printing/Stationery/Photocopy,MICRON B/POINT PEN MED RED
15/01/2021,Taunton Group,LYRECO UK,2.88,Printing/Stationery/Photocopy,LYRECO RETRACT GEL INK PEN 0.7MM BLK
15/01/2021,Human Resources,LYRECO UK,10.02,Printing/Stationery/Photocopy,LYRECO BUDGET BOX FILE FOOLSCAP
15/01/2021,Human Resources,LYRECO UK,9.70,Printing/Stationery/Photocopy,LYRECO 7289-02 DESK PAD REFILL 25SHT
15/01/2021,Human Resources,LYRECO UK,6.45,Printing/Stationery/Photocopy,LYRECO 5335 CALENDAR DESK PAD 59X42
15/01/2021,Human Resources,LYRECO UK,2.50,Printing/Stationery/Photocopy,LYRECO DOC WLLT F/CAP/FOLIO 250G  KRAFT
15/01/2021,Human Resources,LYRECO UK,3.75,Printing/Stationery/Photocopy,PK250 LYRECO ENV C4 80G S/S MANILLA
16/01/2021,ICT Delivery,AMZNMktpla,40.01,ICT Desktop Service,AMZNMktplace
16/01/2021,Barnstaple Group,LYRECO UK,14.46,Printing/Stationery/Photocopy,SECO SLIMCASE CLIPBOARD A4 BLUE
16/01/2021,Barnstaple Group,LYRECO UK,12.18,Printing/Stationery/Photocopy,BX100 FELLOWES LAM POUCH A3 2X80MI GLOSS
16/01/2021,Barnstaple Group,LYRECO UK,9.80,Printing/Stationery/Photocopy,TESA 4120 PACK TAPE PVC 50X66M BRW
16/01/2021,Barnstaple Group,LYRECO UK,52.75,Printing/Stationery/Photocopy,RM500 LYRECO PAPER A4 75G WH
16/01/2021,Barnstaple Group,LYRECO UK,12.54,Printing/Stationery/Photocopy,BX100 LYRECO LAM POUCH 2X75MI A4 GLOSS
16/01/2021,Barnstaple Group,LYRECO UK,2.90,Printing/Stationery/Photocopy,LYRECO HARD BACK TWIN WIRE NOTEBOOK A5
16/01/2021,Barnstaple Group,LYRECO UK,4.70,Printing/Stationery/Photocopy,LYRECO HARD BACK TWIN WIRE NOTEBOOK A4
16/01/2021,Barnstaple Group,LYRECO UK,49.50,Printing/Stationery/Photocopy,RM500 LYRECO BUDGET PAPER A4 80G WH
16/01/2021,Barnstaple Group,LYRECO UK,19.84,Printing/Stationery/Photocopy,PK100 LYRECO POCK A4 80MIC CLEAR GLASS
16/01/2021,Barnstaple Group,LYRECO UK,1.44,Printing/Stationery/Photocopy,LYRECO RETRACT GEL INK PEN 0.7MM RED
16/01/2021,Barnstaple Group,LYRECO UK,4.32,Printing/Stationery/Photocopy,LYRECO RETRACT GEL INK PEN 0.7MM BLK
16/01/2021,Fire Control,AMZNMktpla,27.27,Standard Equipment,AMZNMktplace
17/01/2021,West Devon,WWW.ORDANC,19.99,Publications/Subscriptions,WWW.ORDANCESURVEY.CO.U
17/01/2021,Human Resources,Amazon.co.,269.98,Standard Equipment,Amazon.co.uk*MV1YL3NE4
18/01/2021,4x4 Replacement,WWW.DEVON.,75.00,External Prof Support/Advice,WWW.DEVON.GOV.UK
18/01/2021,ICT Delivery,FASTHOSTS,6.28,ICT Infrastructure Service,PHP Support
18/01/2021,MRP Equipment,GREGORY DI,95.76,Carriage Costs,GREGORY DISTRIBUTION
18/01/2021,Crownhill Vehicle Engineering,C.E.F. (To,12.72,Direct Replacmnt Parts-Defects,APPLIANCE INLET 16A 2P+E 240V IP44 WALL
18/01/2021,Public Relations,ADOBE PROD,8.42,ICT Application Services (Oth),ADOBE PRODUCTS
18/01/2021,Public Relations,STK*Shutte,125.00,Printing/Stationery/Photocopy,STK*Shutterstock
18/01/2021,Alignment,SAFETY GLO,30.87,Uniforms Other,SAFETY GLOVES
18/01/2021,USAR Dog,PAYPAL *YI,4.99,USAR Dog Expenses,PAYPAL *YILAPUMAOYI EB
18/01/2021,USAR Dog,PAYPAL *SA,10.31,USAR Dog Expenses,PAYPAL *SASHAMORRIS EB
18/01/2021,USAR Dog,eBay O*20-,5.91,USAR Dog Expenses,eBay O*20-06426-63097
18/01/2021,Camels Head,AMZNMktpla,27.84,Standard Equipment,STN48 BAKING TRAYS AND CHIP SCOOP
18/01/2021,Crownhill,AMZNMktpla,4.99,Standard Equipment,STN49 Mixing bowls
18/01/2021,Greenbank,AMMERHURST,9.95,Standard Equipment,AMMERHURST LTD
18/01/2021,Driver Training School,FUTURE SAF,233.40,Operational Equipment,FUTURE SAFETY LTD
18/01/2021,Academy Management,SCREWFIX D,19.90,Unforseen Maintnce Mats Techn,SCREWFIX DIRECT
18/01/2021,Academy Management,SP * INDOO,36.85,Trng Equip Consumables,SP * INDOOR OUTDOORS
18/01/2021,Assets & Systems,Amazon.co.,137.92,Audio Visual Equipment,Amazon.co.uk*MV5PD6JR4
19/01/2021,Operational Assets Management,JC MOTORCY,180.00,Tyres & Tubes,JC MOTORCYCLES LIMITED
19/01/2021,Chelston Vehicle Engineering,WWW.BUILDB,80.46,Marine craft,WWW.BUILDBASE.CO.UK
19/01/2021,Crownhill Vehicle Engineering,ZORO UK,38.83,Direct Replacmnt Parts-Defects,ZORO UK
19/01/2021,Crownhill Vehicle Engineering,LYRECO UK,4.41,Printing/Stationery/Photocopy,BK25 LYRECO PREMIUM C/FLUSH FOLD 150MI
19/01/2021,Crownhill Vehicle Engineering,LYRECO UK,0.36,Printing/Stationery/Photocopy,LYRECO BALLPOINT PEN MEDIUM BLUE
19/01/2021,Crownhill Vehicle Engineering,LYRECO UK,0.36,Printing/Stationery/Photocopy,LYRECO B/POINT PEN MED POINT BLK
19/01/2021,Crownhill Vehicle Engineering,LYRECO UK,7.21,Printing/Stationery/Photocopy,FELLOWES CRYSTAL GEL MOUSE PAD BLUE
19/01/2021,Crownhill Vehicle Engineering,XMA LTD,42.50,Print Consumables,HP 203A ORIGINAL BLACK LASERJET TONE
19/01/2021,Insurance & Risk,AMZNMktpla,19.16,Standard Equipment,AMZNMktplace
19/01/2021,Fire Control,LYRECO UK,1.50,Printing/Stationery/Photocopy,FOCUS BALL PEN MEDIUM BLUE
19/01/2021,Fire Control,LYRECO UK,1.50,Printing/Stationery/Photocopy,FOCUS BALL PEN MEDIUM BLK
19/01/2021,Fire Control,LYRECO UK,9.12,Printing/Stationery/Photocopy,BX200 PURELL HAND & SURFACE SAN WIPES
19/01/2021,USAR Dog,THEKENNELC,17.00,USAR Dog Expenses,THEKENNELCLUB.ORG
19/01/2021,Taunton Group,Amazon.co.,116.66,Standard Equipment,Amazon.co.uk*MV0EZ8TL4
19/01/2021,Assets & Systems,SCAN COMPU,440.83,Audio Visual Equipment,SCAN COMPUTERS INT LTD
19/01/2021,Assets & Systems,WWW.PROAV.,509.00,Audio Visual Equipment,WWW.PROAV.CO.UK
19/01/2021,Assets & Systems,AMAZON.CO.,66.66,Audio Visual Equipment,AMAZON.CO.UK*MV7IC2AP4 AM
19/01/2021,Assets & Systems,3DVISTA,458.16,ICT Application Services (Oth),3DVISTA
19/01/2021,Community Safety Prevention,AMZ*Amazon,-59.15,Standard Equipment,AMZ*Amazon Business UK
20/01/2021,4x4 - 17 Ford Ranger,AMARI BRIS,940.62,Vehicle purchase,AMARI BRISTOL
20/01/2021,Stock,SAFETYSIGN,6.59,Ops Equipment Purchases,SAFETYSIGNS
20/01/2021,ICT Delivery,Amazon.co.,128.24,ICT Infrastructure Service,SD Cards
20/01/2021,ICT Delivery,DRI*DeepSo,96.67,ICT Mobile Telephony Service,IAS Log Viewer license
20/01/2021,Estates,AMZNMKTPLA,9.99,Standard Equipment,AMZNMKTPLACE AMAZON.CO.UK
20/01/2021,Estates,AMZNMKTPLA,19.99,Publications/Subscriptions,AMZNMKTPLACE AMAZON.CO.UK
20/01/2021,Chelston Vehicle Engineering,BLT DIRECT,12.60,Direct Replacmnt Parts-Defects,BLT DIRECT - V/T
20/01/2021,Chelston Vehicle Engineering,EURO DRIVE,366.25,Direct Replacmnt Parts-Defects,EURO DRIVE SHAFTS AND HYD
20/01/2021,Chelston Vehicle Engineering,MANUTAN UK,444.99,Engineering Purchases,MANUTAN UK LTD
20/01/2021,Public Relations,STK*Shutte,34.80,Printing/Stationery/Photocopy,STK*Shutterstock
20/01/2021,Research & Development,SAFETYSUPP,71.34,Standard Equipment,SAFETYSUPPL
20/01/2021,Crownhill,TOOLSTATIO,12.48,Unforseen Maintnce Mats Techn,TOOLSTATION LTD
20/01/2021,Ivybridge,Amazon.co.,19.16,Standard Equipment,MASTER LOCK Heavy Duty Padlock
20/01/2021,Bridgwater,REAL BREAD,19.40,Subsistence Uniformed,REAL BREAD SOMERSET
20/01/2021,Community & Workplace Equality,ZOOM.US 88,89.92,Publications/Subscriptions,ZOOM.US 888-799-9666
20/01/2021,Customer Services,AMZNMktpla,24.98,Cleaning/Kitchen Equipment,AMZNMktplace
20/01/2021,Community Safety Prevention,WESTERN BO,101.30,Standard Equipment,WESTERN BOLT & ENGINEER
21/01/2021,ICT Delivery,AMAZON.CO.,45.82,ICT Desktop Service,AMAZON.CO.UK*MV5L49PU4 AM
21/01/2021,Chelston Vehicle Engineering,B&Q DIRECT,20.00,Vehicle Consumables,B&Q DIRECT
21/01/2021,Chelston Vehicle Engineering,STONE HARD,291.67,Contractor Repair,STONE HARDY
21/01/2021,Public Relations,ADOBE PR C,16.64,ICT Application Services (Oth),ADOBE PR CREATIVE CLD
21/01/2021,West Devon,LYRECO UK,0.80,Printing/Stationery/Photocopy,PK4 LYRECO INDEX PAPIER 20X38MM ASSTD
21/01/2021,West Devon,LYRECO UK,7.90,Printing/Stationery/Photocopy,LUMOCOLOR 317 PERM OHP PEN MEDIUM BLK
21/01/2021,West Devon,LYRECO UK,0.24,Printing/Stationery/Photocopy,STANDARD RULER 12 /30CM CLR
21/01/2021,West Devon,LYRECO UK,5.64,Printing/Stationery/Photocopy,LYRECO THINGS TO DO PAD
21/01/2021,West Devon,LYRECO UK,10.75,Printing/Stationery/Photocopy,PK50 FELLOWES 36054 SHREDDER BAG 53/75L
21/01/2021,West Devon,LYRECO UK,5.61,Printing/Stationery/Photocopy,LYRECO REFILLABLE MAGNETIC ERASER
21/01/2021,West Devon,LYRECO UK,9.40,Printing/Stationery/Photocopy,LYRECO HARD BACK TWIN WIRE NOTEBOOK A4
21/01/2021,West Devon,LYRECO UK,5.80,Printing/Stationery/Photocopy,LYRECO HARD BACK TWIN WIRE NOTEBOOK A5
21/01/2021,West Devon,LYRECO UK,4.22,Printing/Stationery/Photocopy,PK4 LUMOCOLOR 316 N/PERM OHP PEN F ASSTD
21/01/2021,West Devon,LYRECO UK,6.98,Printing/Stationery/Photocopy,PK4 LUMOCOLOR 318 PERM OHP PEN F ASSTD
21/01/2021,West Devon,LYRECO UK,4.00,Printing/Stationery/Photocopy,LYRECO TWIN WIRE SPIRAL PAD A5
21/01/2021,West Devon,LYRECO UK,12.40,Printing/Stationery/Photocopy,LYRECO SHORTHAND NOTEBOOK 80S 56G
21/01/2021,West Devon,LYRECO UK,1.84,Printing/Stationery/Photocopy,LYRECO PREMIUM ASYM SCISSORS 21CM
21/01/2021,West Devon,POST OFFIC,60.00,Postages,POST OFFICE COUNTER
21/01/2021,South Devon,TOOLSTATIO,39.96,Standard Equipment,TOOLSTATION LTD
21/01/2021,South Devon,POST OFFIC,23.76,Postages,POST OFFICE COUNTER
21/01/2021,Academy Management,EXETER WIN,28.22,Unforseen Maintnce Mats Techn,EXETER WINDOW STORE
21/01/2021,Assets & Systems,Amazon.co.,88.31,Audio Visual Equipment,Amazon.co.uk*MV1621P14
21/01/2021,Assets & Systems,AMAZON.CO.,16.34,Audio Visual Equipment,AMAZON.CO.UK*MV6668P34 AM
21/01/2021,West & North,AMZNMktpla,94.50,Standard Equipment,AMZNMktplace
22/01/2021,Stock,SAFETYSIGN,19.10,Ops Equipment Purchases,SAFETYSIGNS
22/01/2021,Light Vehicle Management,STONE HARD,160.00,Vehicle Repair Other (Transpt),STONE HARDY
22/01/2021,Hydrants Maintenance,OTTER TAUN,59.97,Standard Equipment,OTTER TAUNTON LIMITED
22/01/2021,Public Relations,WWW.PMGLTD,414.00,Non-Uniformed Training,WWW.PMGLTD.CO.UK
22/01/2021,Public Relations,STK*Shutte,34.80,Printing/Stationery/Photocopy,STK*Shutterstock
22/01/2021,Okehampton,Amazon.co.,9.39,Publications/Subscriptions,Amazon.co.uk - OS Map Dartmoor for Stn13
22/01/2021,West Devon,LYRECO UK,6.54,Printing/Stationery/Photocopy,PUKKA POCK NOTEBK 130X85MM RULEDSILV/BLK
22/01/2021,West Devon,LYRECO UK,4.50,Printing/Stationery/Photocopy,MICRON B/POINT PEN MED BLK
22/01/2021,West Devon,LYRECO UK,2.95,Printing/Stationery/Photocopy,BX100 LYRECO PVC COVER 200MIC A4 TRANSP
22/01/2021,West Devon,LYRECO UK,84.40,Printing/Stationery/Photocopy,RM500 LYRECO PAPER A4 75G WH
22/01/2021,Yeovil Group,AMZNMktpla,44.16,Standard Equipment,AMZNMktplace
22/01/2021,Assets & Systems,AMZNMktpla,14.99,Audio Visual Equipment,AMZNMktplace
23/01/2021,ICT Delivery,Amazon.co.,39.99,ICT Fixed Line Tel Ser-Hardwar,Plantronics C3320
23/01/2021,Insurance & Risk,LYRECO UK,3.35,Printing/Stationery/Photocopy,LYRECO NOTEBOOK SPIRAL A4+ RULED 70G 80S
23/01/2021,Yeovil Group,LYRECO UK,8.38,Printing/Stationery/Photocopy,GOLDLINE GPT1A4Z PROF TRACING PAD A4
23/01/2021,Yeovil Group,LYRECO UK,8.29,Printing/Stationery/Photocopy,BX5 LYRECO FLIPCHART PADS A1 40 SHT
23/01/2021,Assets & Systems,iStock com,37.80,Licence fees,iStock com
23/01/2021,Community Safety Prevention,LYRECO UK,6.36,Printing/Stationery/Photocopy,BIC VELLEDA1741 W/BOARD MARK B/TIP M BLK
23/01/2021,Community Safety Prevention,LYRECO UK,6.80,Printing/Stationery/Photocopy,PK500 LYRECO ENV PLAIN DL 90G P/S WH
24/01/2021,Crownhill Vehicle Engineering,SCREWFIX D,356.66,Garage Equipment,SCREWFIX DIRECT
24/01/2021,Torrington,AMZNMktpla,8.32,Standard Equipment,Padlock for Torrington
24/01/2021,Torrington,AMZNMktpla,3.74,Postages,Postage
25/01/2021,Stock,AMZNMktpla,30.82,Standard Equipment Purchase,AMZNMktplace
25/01/2021,Stock,WWW.HIVIS.,15.36,Uniforms Purchase,WWW.HIVIS.NET
25/01/2021,Stock,TOOLSTATIO,76.83,Ops Equipment Purchases,TOOLSTATION LTD
25/01/2021,ICT Delivery,DRI*CISCO,10.12,ICT Infrastructure Service,DRI*CISCO WEBEX
25/01/2021,Public Relations,WWW.CIPR.C,762.00,Non-Uniformed Training,WWW.CIPR.CO.UK
25/01/2021,Alignment,AMZNMKTPLA,35.82,Printing/Stationery/Photocopy,AMZNMKTPLACE AMAZON.CO.UK
25/01/2021,USAR Team,Amazon Mus,14.99,External Trainer Hire,Amazon Music*MV6CL25Z4
25/01/2021,USAR Team,SAINSBURYS,14.75,Catering/Refreshments,SAINSBURYS S/MKTS
25/01/2021,USAR Team,BOOTS 5362,49.99,First Aid,BOOTS 5362
25/01/2021,Greenbank,SCREWFIX D,8.32,Unforseen Maintnce Mats Techn,SCREWFIX DIR LTD
25/01/2021,Yeovil Group,B&Q DIRECT,44.80,Standard Equipment,B&Q DIRECT
25/01/2021,Assets & Systems,ZOOM.US 88,11.99,Licence fees,ZOOM.US 888-799-9666
25/01/2021,West & North,B&M 059 -,32.00,Standard Equipment,B&M 059 - COYPOOL
26/01/2021,Stock,AMZNMktpla,15.27,Ops Equipment Purchases,AMZNMktplace
26/01/2021,Stock,TOOLSTATIO,91.23,Ops Equipment Purchases,TOOLSTATION LTD
26/01/2021,ICT Delivery,AMZNMktpla,292.77,ICT Desktop Service,AMZNMktplace
26/01/2021,ICT Delivery,WWW.MAD4TO,49.51,ICT Desktop Service,WWW.MAD4TOOLS.COM
26/01/2021,Crownhill Vehicle Engineering,AMZNMKTPLA,17.34,Garage Equipment,AMZNMKTPLACE AMAZON.CO.UK
26/01/2021,Crownhill Vehicle Engineering,GSPRODUCTS,17.36,Direct Replacmnt Parts-Defects,GSPRODUCTS.CO.UK
26/01/2021,Public Relations,AMAZON.CO.,49.00,Audio Visual Equipment,AMAZON.CO.UK*MV0RF8BG4 AM
26/01/2021,Witheridge,XMA LTD,25.85,Print Consumables,HP 953XL High Yield Black Original Ink C
26/01/2021,Research & Development,WESTMORLAN,7.70,Subsistence Uniformed,WESTMORLAND LTD
26/01/2021,Research & Development,STAFFORD B,14.80,Catering/Refreshments,STAFFORD BK
26/01/2021,Research & Development,4421,12.64,Catering/Refreshments,4421
26/01/2021,USAR Dog,OSCARS HON,54.75,USAR Dog Expenses,OSCARS HONITON R/T CUR
26/01/2021,Assets & Systems,WORDS OF W,58.87,Audio Visual Equipment,WORDS OF WISDOM
27/01/2021,ICT Delivery,WWW.AVPART,-64.90,ICT Desktop Service,WWW.AVPARTMASTER.NET
27/01/2021,USAR Team,SAINSBURYS,8.93,Catering/Refreshments,SAINSBURYS S/MKTS
27/01/2021,USAR Dog,ENGRAVING,28.33,USAR Dog Expenses,ENGRAVING STUDIOS
27/01/2021,Greenbank,BLINDS 2 G,69.10,Unforseen Maintnce Mats Techn,BLINDS 2 GO LTD
27/01/2021,South Devon,AJPRODUCTS,294.00,Printing/Stationery/Photocopy,AJPRODUCTS.CO.UK
27/01/2021,Human Resources,AMZNMktpla,181.66,Standard Equipment,AMZNMktplace
27/01/2021,Assets & Systems,FASTHOSTS,6.34,ICT Application Services (Oth),FASTHOSTS INTERNET
27/01/2021,Assets & Systems,ZOOM.US 88,11.21,Licence fees,ZOOM.US 888-799-9666
27/01/2021,Community Safety Prevention,AMZNMktpla,72.42,Standard Equipment,AMZNMktplace
27/01/2021,Community Safety Prevention,EB *VULNER,10.00,Standard Equipment,EB *VULNERABILITY DISC
28/01/2021,ICT Delivery,FASTHOSTS,5.04,ICT Infrastructure Service,Business Bronze - Safe Southwest
28/01/2021,ICT Delivery,AMZNMktpla,6.24,ICT Mobile Telephony Service,iPhone Charge cable
28/01/2021,Estates,TOOLSTATIO,16.80,Unforseen Maintnce Mats Techn,TOOLSTATION LTD
28/01/2021,Exeter Group,LYRECO UK,4.89,Printing/Stationery/Photocopy,ADHESIVE GRID TAPE 3MMX10M  BLACK
28/01/2021,Exeter Group,LYRECO UK,1.56,Printing/Stationery/Photocopy,LYRECO STICKY NOTE 75X125 100SH YLLW
28/01/2021,Exeter Group,LYRECO UK,1.70,Printing/Stationery/Photocopy,LYRECO WHITEBOARD MARKER C/TIP BLACK
28/01/2021,Exeter Group,LYRECO UK,1.70,Printing/Stationery/Photocopy,LYRECO WHITEBOARD MARKER C/TIP RED
28/01/2021,Exeter Group,LYRECO UK,1.70,Printing/Stationery/Photocopy,LYRECO WHITEBOARD MARKER C/TIP BLUE
28/01/2021,Exeter Group,LYRECO UK,1.70,Printing/Stationery/Photocopy,LYRECO WHITEBOARD MARKER C/TIP GREEN
28/01/2021,Middlemoor Fire Station,AMAZON.CO.,16.65,Standard Equipment,AMAZON.CO.UK*MV0MW3SA4 AM
28/01/2021,USAR Team,HONITON SF,56.00,Subsistence Uniformed,HONITON SF CONNECT
28/01/2021,USAR Team,HONITON SF,177.10,Subsistence Uniformed,HONITON SF CONNECT
28/01/2021,USAR Team,BIRDS NEST,310.00,Catering/Refreshments,BIRDS NEST
28/01/2021,USAR Team,TESCO STOR,3.00,Catering/Refreshments,TESCO STORE 2679
28/01/2021,Academy Management,LYRECO UK,96.00,Provisions Purchase,SEMI SKIMMED UHT MILK 1L
28/01/2021,Academy Management,LYRECO UK,0.99,Printing/Stationery/Photocopy,FELLOWES R-KIVE MAGAZINE FILE
28/01/2021,Academy Management,LYRECO UK,9.60,Printing/Stationery/Photocopy,LYRECO RULED MANUSCRIPT BOOK A4 BLUE
28/01/2021,Academy Management,LYRECO UK,7.00,Printing/Stationery/Photocopy,LYRECO FEINT RULED & MARGIN RFL PAD A4
28/01/2021,Academy Management,LYRECO UK,6.60,Printing/Stationery/Photocopy,LYRECO MYLAR TAB DIVIDER WH 1-10
28/01/2021,Academy Management,LYRECO UK,17.00,Printing/Stationery/Photocopy,KREACOVER 4D-RING BINDER A4 50MM RED
28/01/2021,Academy Management,LYRECO UK,8.68,Printing/Stationery/Photocopy,STEWART SUPERIOR ALU FRAME A4 SILVER
28/01/2021,West & North,PAYPAL *FW,87.99,Standard Equipment,PAYPAL *FWDDESIGN
28/01/2021,Covid-19,STEVENAGE,"4,214.88",Operational Equipment,STEVENAGE PACKAGING
29/01/2021,Estates,WWW.DEVON.,185.00,External Trainer Hire,WWW.DEVON.GOV.UK
29/01/2021,Estates,C.E.F. (Ex,11.75,Unforseen Maintnce Mats Techn,VDE Insulated Screwdriver Pz2 X 100mm
29/01/2021,Operational Assets Management,LOCHSIDE H,421.49,Hotel Booking,LOCHSIDE HOUSE HOTEL
29/01/2021,Public Relations,PAYPAL *LG,300.00,Non-Uniformed Training,PAYPAL *LGCOMMS2018
29/01/2021,Research & Development,KEELE SOUT,10.42,Subsistence Uniformed,KEELE SOUTH STARBUCKS
29/01/2021,Research & Development,BRIDGEWATE,13.24,Catering/Refreshments,BRIDGEWATER N/E BK
29/01/2021,Research & Development,MCDONALDS,8.88,Catering/Refreshments,MCDONALDS
29/01/2021,USAR Team,Amazon Mus,-14.99,Seminars/Conferences,Amazon Music
29/01/2021,USAR Team,HONITON SF,104.50,Subsistence Uniformed,HONITON SF CONNECT
29/01/2021,USAR Team,HONITON SF,39.20,Subsistence Uniformed,HONITON SF CONNECT
29/01/2021,West Devon,LYRECO UK,1.50,Printing/Stationery/Photocopy,FOCUS BALL PEN MEDIUM RED
29/01/2021,West Devon,LYRECO UK,3.42,Printing/Stationery/Photocopy,BX4 LYRECO BUDGET HIGHLIGHTERS ASSTD COL
29/01/2021,West Devon,LYRECO UK,3.48,Printing/Stationery/Photocopy,LYRECO PREMIUM SOFT BALL PEN MEDIUM BLK
29/01/2021,West Devon,LYRECO UK,1.50,Printing/Stationery/Photocopy,MICRON B/POINT PEN MED BLK
29/01/2021,West Devon,LYRECO UK,1.82,Printing/Stationery/Photocopy,PK20 LYRECO WET/DRY SACHETS
29/01/2021,West Devon,LYRECO UK,0.57,Printing/Stationery/Photocopy,PK420 AVERY PSA08MX DOT LAB DIA8MM ASSTD
29/01/2021,West Devon,LYRECO UK,7.80,Printing/Stationery/Photocopy,SCOTCH EASY USE TAPE 25X66MM CLEAR
29/01/2021,West Devon,LYRECO UK,0.99,Printing/Stationery/Photocopy,BX1000 LYRECO PAP CLIP ROUND GALV 32MM
29/01/2021,West Devon,LYRECO UK,3.08,Printing/Stationery/Photocopy,PK RUBBER BANDS NO.38 1LB 6 LONG
29/01/2021,South Devon,XMA LTD,12.46,Print Consumables,BROTHER LC3217BK INK BLACK
29/01/2021,South Devon,XMA LTD,9.06,Print Consumables,BROTHER LC3217C INK CYAN
29/01/2021,South Devon,XMA LTD,9.06,Print Consumables,BROTHER LC3217Y INK YELLOW
29/01/2021,South Devon,XMA LTD,9.06,Print Consumables,BROTHER LC3217M INK MAGENTA
29/01/2021,South Devon,XMA LTD,17.61,Print Consumables,OKI ML182/ELITE BLACK NYLON RIBBON
29/01/2021,South Devon,XMA LTD,9.06,Print Consumables,BROTHER LC3217M INK MAGENTA
29/01/2021,South Devon,XMA LTD,17.61,Print Consumables,OKI ML182/ELITE BLACK NYLON RIBBON
29/01/2021,South Devon,XMA LTD,12.46,Print Consumables,BROTHER LC3217BK INK BLACK
29/01/2021,South Devon,XMA LTD,9.06,Print Consumables,BROTHER LC3217C INK CYAN
29/01/2021,South Devon,XMA LTD,9.06,Print Consumables,BROTHER LC3217Y INK YELLOW
29/01/2021,Academy Management,SCREWFIX D,33.28,Unforseen Maintnce Mats Techn,SCREWFIX DIRECT
29/01/2021,Community Safety Prevention,EB *HOW SA,269.00,Non-Uniformed Training,EB *HOW SAFE 2021
29/01/2021,Community Safety Prevention,WESTERN BO,26.50,Standard Equipment,WESTERN BOLT & ENGINEER
30/01/2021,South Devon,LYRECO UK,0.49,Printing/Stationery/Photocopy,BX1000 RAPID 23/10 STAPLES
30/01/2021,South Devon,LYRECO UK,6.10,Printing/Stationery/Photocopy,LYRECO HD100 HEAVY-DUTY STAPLER BLACK
30/01/2021,South Devon,LYRECO UK,1.98,Printing/Stationery/Photocopy,ELBA 17215120 10-PART DIV PP A4 COL
30/01/2021,South Devon,LYRECO UK,66.60,Printing/Stationery/Photocopy,RM500 LYRECO PAPER A4 80G WH
31/01/2021,ICT Delivery,AMZNMktpla,35.80,ICT Mobile Telephony Service,Samsung A21S cases
"37,549.10","5,032.54",,,,
